{"text_format":"1","workbook":"xlsx","n_sheets":1,"sheets":["Commercial Bid Indicative Price"],"not_rendered":{"charts":0,"images":0,"macros":0,"external_links":0,"defined_names":0,"comments":0,"pivot_tables":0},"unopened":[],"bounds":{"document_bytes":16777216,"sheet_cells":100000,"rows_first":2000,"rows_last":500,"rows_between":2000,"halvings":0,"cell_chars":16384,"cell_head_chars":4096},"cells_cut":0,"cells_raw":0,"read":"whole","date_system":"1900"}

{"sheet":"Commercial Bid Indicative Price","index":0,"n_rows":31,"n_cols":12,"rows_kept":31,"cut":false,"hidden":false,"merged":[[29,6,29,11],[30,6,30,11],[26,0,26,14],[4,0,4,5],[28,6,28,11],[22,1,22,2],[23,1,23,2],[23,3,23,11],[22,3,22,11],[1,0,1,11],[0,0,0,11],[13,1,13,2],[18,1,18,2],[16,1,16,2],[9,1,9,2],[5,1,5,2],[2,0,2,1],[2,2,2,11]]}
["Life Insurance Corporation of India - RFP/Tender for Onboarding System Integrator (SI) to  Supply, Install, Implement and Maintain IT Service Management (ITSM) Solution"]
["Ref: LIC-CO/IT-DT/RFP/2025-2026/ITSM dated 25 August 2025"]
["Name of Bidder:"]
["Sr\n#","Item Description","OEM/SI (a)","Indicative Unit\nRequired (b)","Per Unit Cost (c)","Cost in INR\nwithout Taxes (d) = (b) X (c)","First Year","Second Year ","Third Year ","Fourth Year ","Fifth year","Total  PV cost "]
["PV Factor ",null,null,null,null,null,1.0,0.90909,0.82645,0.75131,0.68301]
[null,"Software Licenses "]
[1.0,"Subscription/s based Named Helpdesk/ Agent/Resolver/Super User/Approver user licenses. (Assigned to one specific user only )\n",null,195.0,null,{"$f":"D7*E7","v":0.0},{"$f":"$F7*G$5","v":0.0},0.0,0.0,0.0,0.0,{"$f":"SUM(G7:K7)","v":0.0}]
[2.0,"Subscription/s based Concurrent Helpdesk/ Agent/Resolver/Super User/Approver user licenses. (Shared by many users, but limited to a set number of simultaneous users. )",null,205.0,null,{"$f":"D8*E8","v":0.0},0.0,0.0,0.0,0.0,0.0,{"$f":"SUM(G8:K8)","v":0.0}]
[3.0,"Other Software Licenses/platform: Windows Server / MSSQL etc.",null,null,null,{"$f":"D9*E9","v":0.0},0.0,"NA","NA","NA","NA",{"$f":"SUM(G9:K9)","v":0.0}]
[null,"Discovering of IT Assets"]
[4.0,"Subscription/s Discovering  of Endpoints (Desktops, Laptops, etc)",null,65000.0,null,{"$f":"D11*E11","v":0.0},{"$f":"$F11*G$5","v":0.0},0.0,0.0,0.0,0.0,{"$f":"SUM(G11:K11)","v":0.0}]
[5.0,"Subscription/s Discovering  of Server and storage devices ",null,5000.0,null,0.0,0.0,0.0,0.0,0.0,0.0,{"$f":"SUM(G12:K12)","v":0.0}]
[6.0,"Subscription/s Discovering of Network devices ",null,15000.0,null,0.0,0.0,0.0,0.0,0.0,0.0,{"$f":"SUM(G13:K13)","v":0.0}]
[null,"Monitoring of IT Assets"]
[7.0,"Subscription/s Monitoring of Server and storage devices ",null,5000.0,null,{"$f":"D15*E15","v":0.0},{"$f":"$F15*G$5","v":0.0},0.0,0.0,0.0,0.0,{"$f":"SUM(G15:K15)","v":0.0}]
[8.0,"Subscription/s Monitoring of IT network devices ",null,15000.0,null,0.0,0.0,0.0,0.0,0.0,0.0,{"$f":"SUM(G16:K16)","v":0.0}]
[null,"Implementation "]
[9.0,"Implementation of IT Service Management Inclusive of ITOM, ITAM and NMS solutions  -One time  Implementation cost with 3 months of OEM support for in-scope module as per technical specifications.",null,1.0,null,0.0,{"$f":"$F18*G$5","v":0.0},"NA","NA","NA","NA",{"$f":"SUM(G18:K18)","v":0.0}]
[null,"Onsite Support"]
[10.0,"Onsite Support resources cost per annum per resources for level 1 (L1) ",null,9.0,null,0.0,{"$f":"$F20*G$5","v":0.0},0.0,0.0,0.0,0.0,{"$f":"SUM(G20:K20)","v":0.0}]
[11.0,"Onsite Support resources cost per annum per resources for Level 2 (L2) ",null,5.0,null,0.0,0.0,0.0,0.0,0.0,0.0,{"$f":"SUM(G21:K21)","v":0.0}]
[12.0,"One - time onsite training cost for LIC team (Location Mumbai) ",null,1.0,null,0.0,{"$f":"$F22*G$5","v":0.0},"NA","NA","NA","NA",{"$f":"SUM(G22:K22)","v":0.0}]
[null,"Total ",null,{"$f":"SUM(L7:L22)","v":0.0}]
[null,"Total in words"]
[]
[]
[" Refer  Business Rules for Online Reverse Auction"]
[]
["Place :"]
[]
["Date :"]